[Event "BAN-chT SAIF POWERTEC 2020"]
[Site "Dhaka"]
[Date "2021.03.20"]
[Round "2.5"]
[White "Mohammad Fahad, Rahman"]
[Black "Shahnaz, Mohammad Faruque"]
[Result "1-0"]
[ECO "B90"]
[WhiteElo "2307"]
[BlackElo "1831"]
[Annotator "NA"]
[PlyCount "67"]
[EventDate "2021.03.19"]
[EventType "team-tourn"]
[EventCountry "BAN"]
[SourceTitle "playchess.com"]
[Source "ChessBase"]
[SourceQuality "1"]
[WhiteTeam "Bangladesh"]
[BlackTeam "Bangladesh"]
[WhiteTeamCountry "BAN"]
[BlackTeamCountry "BAN"]
[TimeControl "5400+30"]

1. e4 {[%emt 0:00:00]} c5 {[%emt 0:00:00]} 2. Nf3 {[%emt 0:00:02]} d6 {[%emt 0:00:00]} 3. d4 {[%emt 0:00:11]} cxd4 {[%emt 0:00:11]} 4. Nxd4 {[%emt 0:00:08]} Nf6 {[%emt 0:00:05]} 5. Nc3 {[%emt 0:00:21]} a6 {[%emt 0:00:12]} 6. Be3 {[%emt 0:00:25]} e5 {[%emt 0:00:08]} 7. Nb3 {[%emt 0:00:09]} Be6 {[%emt 0:03:59]} 8. f3 {[%emt 0:00:18]} Be7 {[%emt 0:03:06]} 9. Qd2 {[%emt 0:00:15]} Nbd7 {[%emt 0:03:32]} 10. g4 {[%emt 0:04:58]} Nb6 {[%emt 0:00:38]} 11. O-O-O {[%emt 0:12:30]} Nfd7 {[%emt 0:15:47]} 12. Nd5 {[%emt 0:06:21]} Bxd5 {[%emt 0:00:58]} 13. exd5 {[%emt 1:10:52]} Qc7 {[%emt 0:06:15]} 14. Na5 {[%emt 0:00:00]} Rc8 {[%emt 0:04:07]} 15. Kb1 {[%emt 0:00:00]} Na4 {[%emt 0:05:58]} 16. c4 {[%emt 0:00:00]} Bd8 {[%emt 0:13:42]} 17. Nb3 {[%emt 0:00:00]} a5 {[%emt 0:06:45]} 18. c5 {[%emt 0:00:00]} Naxc5 {[%emt 0:03:52]} 19. Bb5 {[%emt 0:00:00]} O-O {[%emt 0:01:33]} 20. Nxc5 {[%emt 0:00:00]} Nxc5 {[%emt 0:01:00]} 21. Bxc5 {[%emt 0:00:00]} dxc5 {[%emt 0:01:42]} 22. d6 {[%emt 0:00:00]} Qb6 {[%emt 0:02:20]} 23. a4 {[%emt 0:00:00]} c4 {[%emt 0:00:53]} 24. Rc1 {[%emt 0:00:00]} Qd4 {[%emt 0:11:13]} 25. Qxd4 {[%emt 0:00:00]} exd4 {[%emt 0:00:02]} 26. d7 {[%emt 0:00:00]} Rc7 {[%emt 0:05:33]} 27. Rhd1 {[%emt 0:00:00]} Bg5 {[%emt 0:02:22]} 28. Rxd4 {[%emt 0:00:00]} Bd8 {[%emt 0:03:15]} 29. Rcxc4 {[%emt 0:00:00]} b6 {[%emt 0:00:39]} 30. Re4 {[%emt 0:00:00]} Rxc4 {[%emt 0:01:32]} 31. Bxc4 {[%emt 0:00:00]} g6 {[%emt 0:00:08]} 32. Re8 {[%emt 0:00:00]} Kg7 {[%emt 0:00:30]} 33. Kc2 {[%emt 0:00:00]} Rh8 {[%emt 0:04:33]} 34. Re6 {[%emt 0:10:30]} 1-0

[Event "BAN-chT SAIF POWERTEC 2020"]
[Site "Dhaka"]
[Date "2021.03.20"]
[Round "2.8"]
[White "Shawket Bin, Osman Shaon"]
[Black "Rahman, Ziaur"]
[Result "0-1"]
[ECO "D30"]
[WhiteElo "1982"]
[BlackElo "2419"]
[Annotator "NA"]
[PlyCount "92"]
[EventDate "2021.03.19"]
[EventType "team-tourn"]
[EventCountry "BAN"]
[SourceTitle "playchess.com"]
[Source "ChessBase"]
[SourceQuality "1"]
[WhiteTeam "Bangladesh"]
[BlackTeam "Bangladesh"]
[WhiteTeamCountry "BAN"]
[BlackTeamCountry "BAN"]
[TimeControl "5400+30"]

1. d4 {[%emt 1:30:30]} Nf6 {[%emt 1:30:30]} 2. c4 {[%emt 0:00:00]} e6 {[%emt 0:00:00]} 3. Nf3 {[%emt 0:00:00]} d5 {[%emt 0:00:00]} 4. e3 {[%emt 0:00:00]} Nbd7 {[%emt 0:00:00]} 5. Bd3 {[%emt 0:00:00]} dxc4 {[%emt 0:00:00]} 6. Bxc4 {[%emt 0:00:00]} a6 {[%emt 0:00:00]} 7. O-O {[%emt 0:00:00]} c5 {[%emt 0:00:00]} 8. a4 {[%emt 0:00:00]} cxd4 {[%emt 0:00:00]} 9. exd4 {[%emt 0:00:00]} Nb6 {[%emt 0:00:00]} 10. Bb3 {[%emt 0:00:00]} Be7 {[%emt 0:00:00]} 11. Nc3 {[%emt 0:00:00]} O-O {[%emt 0:00:00]} 12. Qe2 {[%emt 0:00:00]} Nbd5 {[%emt 0:00:00]} 13. a5 {[%emt 0:00:00]} Bd7 {[%emt 0:00:00]} 14. Ne5 {[%emt 0:00:00]} Bc6 {[%emt 0:00:00]} 15. Rd1 {[%emt 0:00:00]} Bb4 {[%emt 0:00:00]} 16. Nxc6 {[%emt 0:00:00]} bxc6 {[%emt 0:00:00]} 17. Bd2 {[%emt 0:00:00]} Qb8 {[%emt 0:00:00]} 18. Bc4 {[%emt 0:00:00]} Bd6 {[%emt 0:00:00]} 19. g3 {[%emt 0:00:00]} Qa7 {[%emt 0:00:00]} 20. Be1 {[%emt 0:00:00]} Rfd8 {[%emt 0:00:00]} 21. Rac1 {[%emt 0:00:00]} Bf8 {[%emt 0:00:00]} 22. Nxd5 Nxd5 23. Qe4 {[%emt 0:00:00]} g6 {[%emt 0:00:00]} 24. Bf1 {[%emt 0:00:00]} Qb7 {[%emt 0:00:00]} 25. Rc2 {[%emt 0:00:00]} Bg7 {[%emt 0:00:00]} 26. Rdc1 {[%emt 0:00:00]} Ne7 {[%emt 0:00:00]} 27. Bc3 {[%emt 0:00:00]} Rd6 {[%emt 0:00:00]} 28. h4 {[%emt 0:00:00]} h5 {[%emt 0:00:00]} 29. Rd1 {[%emt 0:00:26]} Rad8 {[%emt 0:00:00]} 30. Rcd2 {[%emt 0:00:43]} Nf5 {[%emt 0:00:00]} 31. g4 {[%emt 0:03:06]} hxg4 {[%emt 0:00:00]} 32. Qxg4 {[%emt 0:00:02]} Bh6 {[%emt 0:00:00]} 33. Rd3 {[%emt 0:01:20]} Kh7 {[%emt 0:00:00]} 34. Bg2 {[%emt 0:01:21]} Rg8 {[%emt 0:00:00]} 35. Rh3 {[%emt 0:01:47]} Ng7 {[%emt 0:00:00]} 36. Bd2 {[%emt 0:02:02]} f5 {[%emt 0:00:00]} 37. Qf3 {[%emt 0:01:00]} Bxd2 {[%emt 0:00:00]} 38. Rxd2 {[%emt 0:00:02]} Qd7 {[%emt 0:00:00]} 39. Rc2 {[%emt 0:02:21]} Rd5 {[%emt 0:00:00]} 40. h5 {[%emt 0:01:27]} gxh5 {[%emt 0:00:00]} 41. Rxh5+ {[%emt 0:01:49]} Nxh5 {[%emt 0:00:00]} 42. Qxh5+ {[%emt 0:00:03]} Kg7 {[%emt 0:00:00]} 43. Bxd5 {[%emt 0:00:19]} Qxd5 {[%emt 0:00:00]} 44. Kf1 {[%emt 0:00:54]} Rh8 {[%emt 0:00:00]} 45. Qg5+ {[%emt 0:00:07]} Kf7 {[%emt 0:00:00]} 46. Rc3 {[%emt 0:00:58]} Qb5+ {[%emt 0:00:00]} 0-1

[Event "BAN-chT SAIF POWERTEC 2020"]
[Site "Dhaka"]
[Date "2021.03.20"]
[Round "2.9"]
[White "Chowdhury, Sohel"]
[Black "Erigaisi Arjun"]
[Result "0-1"]
[ECO "C63"]
[WhiteElo "2149"]
[BlackElo "2559"]
[Annotator "ChessBase"]
[PlyCount "53"]
[EventDate "2021.03.19"]
[EventType "team-tourn"]
[EventCountry "BAN"]
[SourceTitle "playchess.com"]
[Source "ChessBase"]
[SourceQuality "1"]
[WhiteTeam "Bangladesh"]
[BlackTeam "India"]
[WhiteTeamCountry "BAN"]
[BlackTeamCountry "IND"]
[TimeControl "5400+30"]

1. e4 {[%emt 0:00:00]} e5 {[%emt 0:00:00]} 2. Nf3 {[%emt 0:00:00]} Nc6 {[%emt 0:00:00]} 3. Bb5 {[%emt 0:00:06]} f5 {[%emt 0:00:00]} 4. d3 {[%emt 0:08:59]} fxe4 {[%emt 0:00:10]} 5. dxe4 {[%emt 0:00:02]} Nf6 {[%emt 0:00:08]} 6. O-O {[%emt 0:00:27]} d6 {[%emt 0:00:13]} 7. Re1 {[%emt 0:03:58]} Bg4 {[%emt 0:04:47]} 8. c3 {[%emt 0:01:10]} Be7 {[%emt 0:01:33]} 9. Bc4 {[%emt 0:04:41]} Qd7 {[%emt 0:05:51]} 10. Bg5 {[%emt 0:09:48]} O-O-O {[%emt 0:05:30]} 11. Nbd2 {[%emt 0:01:16]} Rdf8 {[%emt 0:08:05]} 12. b4 {[%emt 0:03:54]} Nh5 {[%emt 0:08:03]} 13. Be3 {[%emt 0:05:50]} Nf4 {[%emt 0:05:25]} 14. Bf1 {[%emt 0:06:24]} Rf6 {[%emt 0:11:34]} 15. Qa4 {[%emt 0:04:06]} Rhf8 {[%emt 0:05:33]} 16. b5 {[%emt 0:02:51]} Nb8 {[%emt 0:00:47]} 17. Qxa7 {[%emt 0:08:32]} Nxg2 {[%emt 0:02:18]} 18. Bxg2 {[%emt 0:00:29]} Bh3 {[%emt 0:13:44]} 19. Ng5 {[%emt 0:19:34]} Rg6 {[%emt 0:02:08]} 20. Nf1 {[%emt 0:06:53]} Bxg5 {[%emt 0:01:13]} 21. Bxg5 {[%emt 0:01:53]} Rxg5 {[%emt 0:00:10]} 22. Ng3 {[%emt 0:00:17]} h5 {[%emt 0:01:23]} 23. Qe3 {[%emt 0:03:35]} Rg6 {[%emt 0:00:53]} 24. Qe2 {[%emt 0:05:45]} h4 {[%emt 0:00:44]} 25. Qh5 {[%emt 0:00:58]} Rh6 {[%emt 0:00:26]} 26. Qg5 {[%emt 0:00:55]} hxg3 {[%emt 0:00:19]} 27. Kf1 {[%emt 0:01:07]} 0-1

[Event "BAN-chT SAIF POWERTEC 2020"]
[Site "Dhaka"]
[Date "2021.03.20"]
[Round "2.11"]
[White "Abu Sufian, Shakil"]
[Black "Zia, Tahsin Tajwar"]
[Result "1/2-1/2"]
[ECO "C18"]
[WhiteElo "2244"]
[BlackElo "2092"]
[Annotator "NA"]
[PlyCount "73"]
[EventDate "2021.03.19"]
[EventType "team-tourn"]
[EventCountry "BAN"]
[SourceTitle "playchess.com"]
[Source "ChessBase"]
[SourceQuality "1"]
[WhiteTeam "Bangladesh"]
[BlackTeam "Bangladesh"]
[WhiteTeamCountry "BAN"]
[BlackTeamCountry "BAN"]
[TimeControl "5400+30"]

1. e4 {[%emt 1:30:30]} e6 {[%emt 1:30:30]} 2. d4 {[%emt 0:00:30]} d5 {[%emt 0:00:30]} 3. Nc3 {[%emt 0:00:30]} Bb4 {[%emt 0:00:30]} 4. e5 {[%emt 0:00:30]} c5 {[%emt 0:00:30]} 5. a3 {[%emt 0:00:30]} Bxc3+ {[%emt 0:00:30]} 6. bxc3 {[%emt 0:00:30]} Qa5 {[%emt 0:00:30]} 7. Bd2 {[%emt 0:00:30]} Qa4 {[%emt 0:00:30]} 8. Qg4 {[%emt 0:00:30]} Kf8 {[%emt 0:00:30]} 9. Qd1 {[%emt 0:00:30]} Ne7 {[%emt 0:00:30]} 10. Nf3 {[%emt 0:00:30]} b6 {[%emt 0:00:30]} 11. Be3 {[%emt 0:00:30]} Ba6 {[%emt 0:00:30]} 12. dxc5 {[%emt 0:00:30]} Bxf1 {[%emt 0:00:30]} 13. Rxf1 {[%emt 0:00:30]} Nd7 {[%emt 0:00:30]} 14. cxb6 {[%emt 0:00:30]} axb6 {[%emt 0:00:30]} 15. Bd4 {[%emt 0:00:30]} Nc6 {[%emt 0:00:30]} 16. Qb1 {[%emt 0:00:30]} Ke7 {[%emt 0:00:30]} 17. Kd2 {[%emt 0:00:30]} Na5 {[%emt 0:00:30]} 18. Qb4+ {[%emt 0:00:30]} Qxb4 {[%emt 0:00:30]} 19. axb4 {[%emt 0:00:30]} Nc4+ {[%emt 0:00:30]} 20. Ke2 {[%emt 0:00:30]} f6 {[%emt 0:00:30]} 21. exf6+ {[%emt 0:00:30]} gxf6 {[%emt 0:00:30]} 22. Nd2 {[%emt 0:00:30]} Nd6 {[%emt 0:00:30]} 23. f4 {[%emt 0:00:30]} h5 {[%emt 0:00:30]} 24. Rxa8 {[%emt 0:00:30]} Rxa8 {[%emt 0:00:30]} 25. Rf3 {[%emt 0:00:30]} Ra3 {[%emt 0:00:30]} 26. Rh3 {[%emt 0:00:30]} e5 {[%emt 0:00:30]} 27. fxe5 {[%emt 0:00:30]} fxe5 {[%emt 0:00:30]} 28. Bf2 {[%emt 0:00:30]} Nb5 {[%emt 0:00:30]} 29. Nb3 {[%emt 0:00:30]} Ra2 {[%emt 0:00:30]} 30. Kd1 {[%emt 0:00:30]} Na3 {[%emt 0:00:30]} 31. Be3 {[%emt 0:00:30]} Nxc2 {[%emt 0:00:30]} 32. Bc1 {[%emt 0:00:30]} Nf6 {[%emt 0:00:30]} 33. Bg5 {[%emt 0:00:30]} Ke6 {[%emt 0:00:30]} 34. Nc1 {[%emt 0:00:30]} Rb2 {[%emt 0:00:30]} 35. Nd3 {[%emt 0:00:30]} Ra2 {[%emt 0:00:30]} 36. Nc1 {[%emt 0:00:30]} Rb2 {[%emt 0:00:30]} 37. Nd3 {[%emt 0:00:30]} 1/2-1/2

[Event "BAN-chT SAIF POWERTEC 2020"]
[Site "Dhaka"]
[Date "2021.03.20"]
[Round "2.12"]
[White "Mitrabha, Guha"]
[Black "Mohammad Minhaz Uddin"]
[Result "1-0"]
[ECO "D00"]
[WhiteElo "2445"]
[BlackElo "2295"]
[Annotator "NA"]
[PlyCount "79"]
[EventDate "2021.03.19"]
[EventType "team-tourn"]
[EventCountry "BAN"]
[SourceTitle "playchess.com"]
[Source "ChessBase"]
[SourceQuality "1"]
[WhiteTeam "India"]
[BlackTeam "Bangladesh"]
[WhiteTeamCountry "IND"]
[BlackTeamCountry "BAN"]
[TimeControl "5400+30"]

1. d4 {[%emt 1:30:30]} Nf6 {[%emt 1:30:30]} 2. Bg5 {[%emt 0:00:30]} e6 {[%emt 0:00:30]} 3. Nd2 {[%emt 0:00:30]} c5 {[%emt 0:00:30]} 4. e3 {[%emt 0:00:30]} d5 {[%emt 0:00:30]} 5. c3 {[%emt 0:00:30]} Nc6 {[%emt 0:00:30]} 6. f4 {[%emt 0:00:30]} h6 {[%emt 0:00:30]} 7. Bh4 {[%emt 0:00:30]} Bd6 {[%emt 0:00:30]} 8. Ngf3 {[%emt 0:00:30]} b6 {[%emt 0:00:30]} 9. Bb5 {[%emt 0:00:30]} Bb7 {[%emt 0:00:30]} 10. Ne5 {[%emt 0:00:30]} Qc7 {[%emt 0:00:30]} 11. Qa4 {[%emt 0:00:30]} Bxe5 {[%emt 0:00:30]} 12. fxe5 {[%emt 0:00:30]} Ne4 {[%emt 0:00:30]} 13. Qd1 {[%emt 0:00:30]} g5 {[%emt 0:00:30]} 14. Bg3 {[%emt 0:00:30]} O-O-O {[%emt 0:00:30]} 15. O-O {[%emt 0:00:30]} h5 {[%emt 0:00:30]} 16. Be1 {[%emt 0:00:30]} Rdf8 {[%emt 0:00:30]} 17. Nxe4 {[%emt 0:00:30]} dxe4 {[%emt 0:00:30]} 18. Qe2 {[%emt 0:00:30]} Na5 {[%emt 0:00:30]} 19. b4 {[%emt 0:00:30]} cxb4 {[%emt 0:00:30]} 20. cxb4 {[%emt 0:00:30]} Nc6 {[%emt 0:00:30]} 21. Rc1 {[%emt 0:00:30]} Kb8 {[%emt 0:00:30]} 22. Bd2 {[%emt 0:00:30]} Qd7 {[%emt 0:00:30]} 23. a4 {[%emt 0:00:30]} Rc8 {[%emt 0:00:30]} 24. Rc2 {[%emt 0:00:30]} Qe7 {[%emt 0:00:30]} 25. Rb1 {[%emt 0:00:30]} Rc7 {[%emt 0:00:30]} 26. Bxc6 {[%emt 0:00:30]} Bxc6 {[%emt 0:00:30]} 27. b5 {[%emt 0:00:30]} Bd5 {[%emt 0:00:30]} 28. Bb4 {[%emt 0:00:30]} Rxc2 {[%emt 0:00:30]} 29. Qxc2 {[%emt 0:00:30]} Qd7 {[%emt 0:00:30]} 30. a5 {[%emt 0:00:30]} Rc8 {[%emt 0:00:30]} 31. Qb2 {[%emt 0:00:30]} Rc4 {[%emt 0:00:30]} 32. Bd6+ {[%emt 0:00:30]} Kc8 {[%emt 0:00:30]} 33. axb6 {[%emt 0:00:30]} axb6 {[%emt 0:00:30]} 34. Ra1 Kd8 {[%emt 0:00:30]} 35. h4 {[%emt 0:01:00]} g4 {[%emt 0:00:30]} 36. Kh2 {[%emt 0:00:30]} f5 {[%emt 0:00:30]} 37. Qf2 {[%emt 0:00:30]} Qxb5 {[%emt 0:00:30]} 38. Qf4 {[%emt 0:00:30]} Ra4 {[%emt 0:00:30]} 39. Qg5+ {[%emt 0:00:30]} Kc8 {[%emt 0:00:30]} 40. Qe7 {[%emt 0:00:30]} 1-0

[Event "BAN-chT SAIF POWERTEC 2020"]
[Site "Dhaka"]
[Date "2021.03.21"]
[Round "3.1"]
[White "Alam, Monjur"]
[Black "Mohammad Fahad, Rahman"]
[Result "0-1"]
[ECO "D52"]
[WhiteElo "1853"]
[BlackElo "2307"]
[Annotator "ChessBase"]
[PlyCount "112"]
[EventDate "2021.03.19"]
[EventType "team-tourn"]
[EventCountry "BAN"]
[SourceTitle "playchess.com"]
[Source "ChessBase"]
[SourceQuality "1"]
[WhiteTeam "Bangladesh"]
[BlackTeam "Bangladesh"]
[WhiteTeamCountry "BAN"]
[BlackTeamCountry "BAN"]
[TimeControl "5400+30"]

1. d4 {[%emt 0:00:00]} d5 {[%emt 0:00:00]} 2. c4 {[%emt 0:00:04]} c6 {[%emt 0:00:02]} 3. Nc3 {[%emt 0:00:24]} Nf6 {[%emt 0:00:16]} 4. Nf3 {[%emt 0:00:32]} e6 {[%emt 0:00:15]} 5. Bg5 {[%emt 0:00:20]} Nbd7 {[%emt 0:00:13]} 6. e3 {[%emt 0:01:47]} Qa5 {[%emt 0:00:17]} 7. Nd2 {[%emt 0:02:37]} Bb4 {[%emt 0:00:14]} 8. Qc2 {[%emt 0:02:52]} dxc4 {[%emt 0:00:08]} 9. Bxf6 {[%emt 0:00:38]} Nxf6 {[%emt 0:00:09]} 10. Bxc4 {[%emt 0:00:40]} e5 {[%emt 0:03:38]} 11. dxe5 {[%emt 0:05:16]} Qxe5 {[%emt 0:00:11]} 12. O-O {[%emt 0:13:31]} O-O {[%emt 0:03:05]} 13. Nf3 {[%emt 0:01:05]} Qh5 {[%emt 0:02:11]} 14. Ne2 {[%emt 0:06:22]} Bg4 {[%emt 0:12:23]} 15. Ng3 {[%emt 0:04:11]} Qa5 {[%emt 0:00:42]} 16. Be2 {[%emt 0:01:54]} Rad8 {[%emt 0:01:18]} 17. a3 {[%emt 0:03:20]} Bd6 {[%emt 0:01:11]} 18. Rfd1 {[%emt 0:01:47]} h5 {[%emt 0:05:18]} 19. Nd4 {[%emt 0:08:00]} g6 {[%emt 0:06:40]} 20. b4 {[%emt 0:16:46]} Qe5 {[%emt 0:11:03]} 21. Bf3 {[%emt 0:03:32]} Bc8 {[%emt 0:10:06]} 22. Nf1 {[%emt 0:05:24]} Ng4 {[%emt 0:02:17]} 23. Bxg4 {[%emt 0:01:05]} Bxg4 {[%emt 0:01:20]} 24. f3 {[%emt 0:00:17]} Bc8 {[%emt 0:00:24]} 25. Rd2 {[%emt 0:02:35]} a5 {[%emt 0:03:31]} 26. Qb3 {[%emt 0:02:45]} axb4 {[%emt 0:01:51]} 27. axb4 {[%emt 0:02:22]} Qe7 {[%emt 0:00:02]} 28. Rb1 {[%emt 0:00:50]} h4 {[%emt 0:01:07]} 29. Qc3 {[%emt 0:02:14]} Rfe8 {[%emt 0:00:56]} 30. Nc2 {[%emt 0:04:16]} Be5 {[%emt 0:01:00]} 31. Qc5 {[%emt 0:01:00]} Bd6 {[%emt 0:01:01]} 32. Qc3 {[%emt 0:00:03]} Be5 {[%emt 0:04:41]} 33. Qc5 {[%emt 0:00:24]} Rxd2 {[%emt 0:00:16]} 34. Nxd2 {[%emt 0:00:27]} Qc7 {[%emt 0:00:19]} 35. Nf1 {[%emt 0:00:46]} Rd8 {[%emt 0:00:11]} 36. b5 {[%emt 0:01:25]} Rd5 {[%emt 0:05:36]} 37. Qc4 {[%emt 0:01:45]} Rxb5 {[%emt 0:01:02]} 38. Rxb5 {[%emt 0:00:23]} cxb5 {[%emt 0:00:06]} 39. Qxb5 {[%emt 0:00:08]} h3 {[%emt 0:00:41]} 40. Nd4 {[%emt 0:01:05]} hxg2 {[%emt 0:00:23]} 41. Kxg2 {[%emt 0:00:19]} Bd7 {[%emt 0:03:32]} 42. Qd5 {[%emt 0:01:26]} b5 {[%emt 0:01:58]} 43. f4 {[%emt 0:00:57]} Bxd4 {[%emt 0:04:07]} 44. Qxd4 {[%emt 0:00:02]} Qc2+ {[%emt 0:00:09]} 45. Kg3 {[%emt 0:01:16]} Qf5 {[%emt 0:00:28]} 46. Nd2 {[%emt 0:01:11]} Qh3+ {[%emt 0:00:18]} 47. Kf2 {[%emt 0:00:14]} Qxh2+ {[%emt 0:00:30]} 48. Ke1 {[%emt 0:00:29]} Bg4 {[%emt 0:00:57]} 49. Qd3 {[%emt 0:00:34]} Qg3+ {[%emt 0:01:00]} 50. Kf1 {[%emt 0:00:07]} Bh3+ {[%emt 0:00:09]} 51. Ke2 {[%emt 0:00:13]} Qg4+ {[%emt 0:00:03]} 52. Ke1 {[%emt 0:00:20]} Qg1+ {[%emt 0:00:06]} 53. Nf1 {[%emt 0:00:51]} b4 {[%emt 0:00:16]} 54. Qd8+ {[%emt 0:00:13]} Kg7 {[%emt 0:00:07]} 55. Qd4+ {[%emt 0:00:13]} Kh7 {[%emt 0:00:11]} 56. Qc4 {[%emt 0:00:23]} Qxf1+ {[%emt 0:00:11]} 0-1

[Event "BAN-chT SAIF POWERTEC 2020"]
[Site "Dhaka"]
[Date "2021.03.21"]
[Round "3.5"]
[White "Erigaisi Arjun"]
[Black "Abu Sufian, Shakil"]
[Result "1-0"]
[ECO "D15"]
[WhiteElo "2559"]
[BlackElo "2244"]
[Annotator "RC"]
[PlyCount "113"]
[EventDate "2021.03.19"]
[EventType "team-tourn"]
[EventCountry "BAN"]
[SourceTitle "playchess.com"]
[Source "ChessBase"]
[SourceQuality "1"]
[WhiteTeam "India"]
[BlackTeam "Bangladesh"]
[WhiteTeamCountry "IND"]
[BlackTeamCountry "BAN"]
[TimeControl "5400+30"]

1. Nf3 {[%emt 0:00:00]} d5 {[%emt 0:00:00]} 2. c4 {[%emt 0:00:16]} c6 {[%emt 0:00:00]} 3. e3 {[%emt 0:00:09]} Nf6 {[%emt 0:00:24]} 4. Nc3 {[%emt 0:00:06]} a6 {[%emt 0:02:59]} 5. d4 {[%emt 0:00:09]} b5 {[%emt 0:00:41]} 6. b3 {[%emt 0:07:18]} Bg4 {[%emt 0:01:32]} 7. Be2 {[%emt 0:06:35]} e6 {[%emt 0:00:16]} 8. O-O {[%emt 0:00:24]} Nbd7 {[%emt 0:02:16]} 9. h3 {[%emt 0:01:09]} Bh5 {[%emt 0:00:22]} 10. a4 {[%emt 0:01:08]} b4 {[%emt 0:07:08]} 11. Nb1 {[%emt 0:00:49]} Bd6 {[%emt 0:01:07]} 12. Nbd2 {[%emt 0:01:19]} O-O {[%emt 0:03:40]} 13. Bb2 {[%emt 0:00:14]} Ne4 {[%emt 0:06:03]} 14. Rc1 {[%emt 0:11:17]} Qb8 {[%emt 0:13:53]} 15. cxd5 {[%emt 0:09:41]} cxd5 {[%emt 0:00:06]} 16. Nxe4 {[%emt 0:00:20]} dxe4 {[%emt 0:00:10]} 17. Nd2 {[%emt 0:00:11]} Bxe2 {[%emt 0:00:51]} 18. Qxe2 {[%emt 0:00:06]} Qb7 {[%emt 0:01:02]} 19. Nc4 {[%emt 0:01:34]} Bc7 {[%emt 0:02:06]} 20. Rc2 {[%emt 0:18:56]} Nf6 {[%emt 0:05:19]} 21. Rfc1 {[%emt 0:02:07]} Nd5 {[%emt 0:10:23]} 22. Ne5 {[%emt 0:01:30]} Bxe5 {[%emt 0:00:37]} 23. dxe5 {[%emt 0:00:07]} Rfc8 {[%emt 0:01:02]} 24. Rc4 {[%emt 0:02:37]} a5 {[%emt 0:07:31]} 25. Bd4 {[%emt 0:04:46]} Ne7 {[%emt 0:03:18]} 26. Rxc8+ {[%emt 0:07:07]} Rxc8 {[%emt 0:00:36]} 27. Rxc8+ {[%emt 0:00:07]} Qxc8 {[%emt 0:00:05]} 28. Qb5 {[%emt 0:00:09]} h6 {[%emt 0:04:11]} 29. Qxa5 {[%emt 0:01:10]} Qc1+ {[%emt 0:00:23]} 30. Kh2 {[%emt 0:00:07]} Nd5 {[%emt 0:00:28]} 31. Qa8+ {[%emt 0:04:12]} Kh7 {[%emt 0:00:01]} 32. a5 {[%emt 0:00:21]} Nc3 {[%emt 0:17:12]} 33. Bxc3 {[%emt 0:00:34]} bxc3 {[%emt 0:00:02]} 34. Qxe4+ {[%emt 0:00:08]} g6 {[%emt 0:00:01]} 35. a6 {[%emt 0:00:36]} Qa1 {[%emt 0:00:10]} 36. Qc4 {[%emt 0:01:56]} Kg7 {[%emt 0:02:12]} 37. a7 {[%emt 0:00:22]} Qxa7 {[%emt 0:00:53]} 38. Qxc3 {[%emt 0:00:06]} Qa2 {[%emt 0:00:07]} 39. b4 {[%emt 0:09:35]} Qxf2 {[%emt 0:02:07]} 40. b5 {[%emt 0:00:32]} g5 {[%emt 0:01:53]} 41. Qd4 {[%emt 0:01:16]} h5 {[%emt 0:00:16]} 42. b6 {[%emt 0:01:07]} h4 {[%emt 0:00:40]} 43. Qb4 {[%emt 0:02:38]} Qxe3 {[%emt 0:01:55]} 44. b7 {[%emt 0:00:08]} Qxe5+ {[%emt 0:00:32]} 45. Kg1 {[%emt 0:00:11]} Qe3+ {[%emt 0:01:32]} 46. Kf1 {[%emt 0:01:31]} Qd3+ {[%emt 0:02:53]} 47. Ke1 {[%emt 0:00:07]} Qe3+ {[%emt 0:00:46]} 48. Kd1 {[%emt 0:00:07]} Qd3+ {[%emt 0:00:30]} 49. Kc1 {[%emt 0:00:37]} Qf1+ {[%emt 0:00:36]} 50. Kb2 {[%emt 0:00:12]} Qxg2+ {[%emt 0:00:05]} 51. Kb3 {[%emt 0:00:15]} Qd5+ {[%emt 0:00:16]} 52. Ka4 {[%emt 0:01:01]} Qa2+ {[%emt 0:01:41]} 53. Kb5 {[%emt 0:00:08]} Qd5+ {[%emt 0:00:15]} 54. Kb6 {[%emt 0:01:40]} Qd8+ {[%emt 0:00:44]} 55. Kc6 {[%emt 0:00:09]} Qb8 {[%emt 0:00:50]} 56. Qd6 {[%emt 0:00:19]} Qe8+ {[%emt 0:00:05]} 57. Kc7 {[%emt 0:00:09]} 1-0

[Event "BAN-chT SAIF POWERTEC 2020"]
[Site "Dhaka"]
[Date "2021.03.21"]
[Round "3.7"]
[White "Uddin, Saif"]
[Black "Ahmed, Sheikh Nasir"]
[Result "0-1"]
[ECO "A00"]
[WhiteElo "1855"]
[BlackElo "2193"]
[Annotator "ChessBase"]
[PlyCount "96"]
[EventDate "2021.03.19"]
[EventType "team-tourn"]
[EventCountry "BAN"]
[SourceTitle "playchess.com"]
[Source "ChessBase"]
[SourceQuality "1"]
[WhiteTeam "Bangladesh"]
[BlackTeam "Bangladesh"]
[WhiteTeamCountry "BAN"]
[BlackTeamCountry "BAN"]
[TimeControl "5400+30"]

1. Nf3 {[%emt 0:00:00]} Nf6 {[%emt 0:00:00]} 2. b4 {[%emt 0:00:00]} e6 {[%emt 0:01:29]} 3. a3 {[%emt 0:00:00]} b6 {[%emt 0:00:05]} 4. e3 {[%emt 0:00:37]} Bb7 {[%emt 0:00:11]} 5. d4 {[%emt 0:00:23]} Be7 {[%emt 0:05:15]} 6. Be2 {[%emt 0:01:12]} O-O {[%emt 0:00:11]} 7. c4 {[%emt 0:00:15]} c5 {[%emt 0:01:29]} 8. bxc5 {[%emt 0:03:54]} bxc5 {[%emt 0:00:11]} 9. O-O {[%emt 0:00:09]} cxd4 {[%emt 0:01:33]} 10. exd4 {[%emt 0:00:19]} d6 {[%emt 0:04:08]} 11. Nc3 {[%emt 0:01:58]} Nbd7 {[%emt 0:03:37]} 12. Rb1 {[%emt 0:00:57]} Qc8 {[%emt 0:06:23]} 13. Bf4 {[%emt 0:05:54]} Nb6 {[%emt 0:13:31]} 14. Nd2 {[%emt 0:03:04]} Nfd7 {[%emt 0:08:08]} 15. Be3 {[%emt 0:08:03]} e5 {[%emt 0:01:30]} 16. a4 {[%emt 0:02:57]} d5 {[%emt 0:10:56]} 17. Qb3 {[%emt 0:15:19]} dxc4 {[%emt 0:23:06]} 18. Nxc4 {[%emt 0:01:37]} Nxc4 {[%emt 0:00:12]} 19. Bxc4 {[%emt 0:00:25]} Rb8 {[%emt 0:01:06]} 20. Qa2 {[%emt 0:06:55]} Nb6 {[%emt 0:01:08]} 21. Nd5 {[%emt 0:06:19]} Bxd5 {[%emt 0:00:54]} 22. Bxd5 {[%emt 0:00:26]} Qd7 {[%emt 0:00:22]} 23. Bb3 {[%emt 0:00:31]} exd4 {[%emt 0:00:40]} 24. Rfd1 {[%emt 0:00:56]} Bf6 {[%emt 0:00:37]} 25. Rd2 {[%emt 0:03:43]} Rbd8 {[%emt 0:03:54]} 26. Rbd1 {[%emt 0:01:40]} Qg4 {[%emt 0:00:54]} 27. f3 {[%emt 0:01:42]} Qh4 {[%emt 0:00:07]} 28. Bf2 {[%emt 0:00:45]} Qf4 {[%emt 0:00:03]} 29. a5 {[%emt 0:02:34]} Nc8 {[%emt 0:00:27]} 30. Qa4 {[%emt 0:00:45]} Ne7 {[%emt 0:01:51]} 31. Bxd4 {[%emt 0:06:38]} Bxd4+ {[%emt 0:02:04]} 32. Rxd4 {[%emt 0:00:24]} Qe3+ {[%emt 0:00:02]} 33. Kf1 {[%emt 0:01:11]} Rxd4 {[%emt 0:00:14]} 34. Rxd4 {[%emt 0:00:19]} Nf5 {[%emt 0:00:33]} 35. Re4 {[%emt 0:02:52]} Qd2 {[%emt 0:02:00]} 36. Re2 {[%emt 0:02:13]} Qc3 {[%emt 0:02:06]} 37. Qa2 {[%emt 0:06:32]} g6 {[%emt 0:01:35]} 38. a6 {[%emt 0:03:48]} Nd4 {[%emt 0:01:05]} 39. Rb2 {[%emt 0:00:09]} Kg7 {[%emt 0:00:36]} 40. Bd5 {[%emt 0:01:40]} Re8 {[%emt 0:02:21]} 41. Qb1 {[%emt 0:02:01]} Nf5 {[%emt 0:01:01]} 42. Be4 {[%emt 0:01:10]} Ne3+ {[%emt 0:00:02]} 43. Ke2 {[%emt 0:00:54]} Nc4 {[%emt 0:00:37]} 44. Rc2 {[%emt 0:04:42]} Qe3+ {[%emt 0:00:11]} 45. Kf1 {[%emt 0:00:06]} Nd2+ {[%emt 0:00:46]} 46. Rxd2 {[%emt 0:00:03]} Qxd2 {[%emt 0:00:04]} 47. Qa1+ {[%emt 0:00:44]} Kg8 {[%emt 0:00:29]} 48. h4 {[%emt 0:04:35]} Rc8 {[%emt 0:00:17]} 0-1